fUST/lending_fUST_20240807
["ID","MTS","AMOUNT","RATE_DAILY","PERIOD"]
[334399583,1723029102203,-972.5,0.00035616,14]
[334399584,1723029102212,-2896.75,0.00035616,14]
[334399585,1723029102222,-836.81,0.00035616,14]
[334399586,1723029102231,-621.33,0.00035616,14]
[334399587,1723029102241,-877.3,0.00035616,14]
[334399588,1723029102251,-500.0,0.00035616,14]
[334399589,1723029102261,-646.55,0.00035616,14]
[334399590,1723029102271,-519.26,0.00035616,14]
[334399591,1723029102281,-811.6,0.00035616,14]
[334399592,1723029102291,-3787.31,0.00035616,14]
[334399593,1723029102300,-676.38,0.00035616,14]
[334399594,1723029102310,-500.0,0.00035616,14]
[334399595,1723029102320,-1713.3,0.00035616,14]
[334399596,1723029102330,-710.82,0.00035616,14]
[334399597,1723029102339,-3403.09,0.00035616,14]
[334399598,1723029102349,-500.0,0.00035616,14]
[334399599,1723029102359,-8008.66,0.00035616,14]
[334399600,1723029102369,-1695.73,0.00035616,14]
[334399601,1723029102379,-500.0,0.00035616,14]
[334399602,1723029102390,-2652.65,0.00035616,14]
[334399603,1723029102399,-500.0,0.00035616,14]
[334399604,1723029102409,-676.41,0.00035616,14]
[334399605,1723029102418,-4726.18,0.00035616,14]
[334399606,1723029102428,-631.77,0.00035616,14]
[334399607,1723029102437,-524.76,0.00035616,14]
[334399608,1723029102447,-765.56,0.00035616,14]
[334399609,1723029102458,-500.0,0.00035616,14]
[334399610,1723029102467,-596.92,0.00035616,14]
[334399611,1723029102477,-2772.04,0.00035616,14]
[334399612,1723029102487,-872.47,0.00035616,14]
[334399613,1723029102497,-500.0,0.00035616,14]
[334399614,1723029102507,-500.0,0.00035616,14]
[334399615,1723029102517,-2850.24,0.00035616,14]
[334399616,1723029102527,-2368.38,0.00035616,14]
[334399617,1723029102538,-918.69,0.00035616,14]
[334399618,1723029102548,-1182.98,0.00035616,14]
[334399619,1723029102558,-500.0,0.00035616,14]
[334399620,1723029102567,-787.24,0.00035616,14]
[334399621,1723029102577,-500.0,0.00035616,14]
[334399622,1723029102588,-500.0,0.00035616,14]
[334399623,1723029102598,-500.0,0.00035616,14]
[334399624,1723029102608,-748.79,0.00035616,14]
[334399625,1723029102618,-1732.44,0.00035616,14]
[334399626,1723029102628,-1373.61,0.00035616,14]
[334399627,1723029102638,-500.0,0.00035616,14]
[334399628,1723029102647,-705.51,0.00035616,14]
[334399629,1723029102657,-1008.03,0.00035616,14]
[334399630,1723029102667,-500.0,0.00035616,14]
[334399631,1723029102677,-5624.94,0.00035616,14]
[334399632,1723029102687,-4673.31,0.00035616,14]
[334399633,1723029102696,-2102.82,0.00035616,14]
[334399634,1723029102706,-683.38,0.00035616,14]
[334399635,1723029102716,-500.0,0.00035616,14]
[334399636,1723029102726,-235.39078,0.00035616,14]
[334399637,1723029102735,-500.0,0.00035616,14]
[334399638,1723029102745,-500.0,0.00035616,14]
[334399639,1723029102755,-1201.25,0.00035616,14]
[334399640,1723029102765,-5296.6,0.00035616,14]
[334399641,1723029102775,-500.0,0.00035616,14]
[334399642,1723029102785,-500.0,0.00035616,14]
[334399643,1723029102795,-754.45,0.00035616,14]
[334399644,1723029102806,-6120.77,0.00035616,14]
[334399645,1723029102816,-4115.44,0.00035616,14]
[334399646,1723029102826,-500.0,0.00035616,14]
[334399647,1723029102836,-2356.09,0.00035616,14]
[334399648,1723029102847,-1016.46,0.00035616,14]
[334399649,1723029102860,-1373.79,0.00035616,14]
[334399650,1723029102870,-27586.24,0.00035616,14]
[334399651,1723029102880,-641.2,0.00035616,14]
[334399652,1723029102890,-551.11,0.00035616,14]
[334399653,1723029102900,-2059.66,0.00035616,14]
[334399654,1723029102910,-884.77,0.00035616,14]
[334399655,1723029102920,-1858.24,0.00035616,14]
[334399656,1723029102930,-7553.97,0.00035616,14]
[334399657,1723029102941,-6001.15,0.00035616,14]
[334399658,1723029102951,-1904.11,0.00035616,14]
[334399659,1723029102960,-3288.86,0.00035616,14]
[334399660,1723029102970,-577.95,0.00035616,14]
[334399661,1723029102979,-1446.23,0.00035616,14]
[334399662,1723029102990,-4804.12,0.00035616,14]
[334399663,1723029103001,-509.19,0.00035616,14]
[334399664,1723029103013,-873.14,0.00035616,14]
[334399665,1723029103023,-3091.7,0.00035616,14]
[334399666,1723029103035,-743.63,0.00035616,14]
[334399667,1723029103046,-1370.13,0.00035616,14]
[334399668,1723029103058,-18095.21,0.00035616,14]
[334399669,1723029103067,-500.0,0.00035616,14]
[334399670,1723029103077,-1609.93,0.00035616,14]
[334399671,1723029103088,-2388.37,0.00035616,14]
[334399672,1723029103098,-803.5,0.00035616,14]
[334399673,1723029103111,-4013.41,0.00035616,14]
[334399674,1723029103124,-602.9,0.00035616,14]
[334399675,1723029103133,-2364.63,0.00035616,14]
[334399676,1723029103143,-629.6,0.00035616,14]
[334399677,1723029103152,-1184.06,0.00035616,14]
[334399678,1723029103161,-500.0,0.00035616,14]
[334399679,1723029103171,-1150.86,0.00035616,14]
[334399680,1723029103181,-602.76,0.00035616,14]
[334399681,1723029103190,-20279.89,0.00035616,14]
[334399682,1723029103199,-1372.29,0.00035616,14]
[334399683,1723029103209,-500.0,0.00035616,14]
[334399684,1723029103218,-11638.4,0.00035616,14]
[334399685,1723029103227,-500.0,0.00035616,14]
[334399686,1723029103236,-500.0,0.00035616,14]
[334399687,1723029103246,-1433.62,0.00035616,14]
[334399688,1723029103256,-500.0,0.00035616,14]
[334399689,1723029103266,-761.0,0.00035616,14]
[334399690,1723029103276,-1750.38,0.00035616,14]
[334399691,1723029103285,-512.68,0.00035616,14]
[334399692,1723029103295,-746.77,0.00035616,14]
[334399693,1723029103304,-11428.84,0.00035616,14]
[334399694,1723029103313,-1433.26,0.00035616,14]
[334399695,1723029103323,-2496.12,0.00035616,14]
[334399696,1723029103332,-2356.96,0.00035616,14]
[334399697,1723029103343,-2975.06,0.00035616,14]
[334399698,1723029103354,-3825.94,0.00035616,14]
[334399699,1723029103366,-1460.03,0.00035616,14]
[334399700,1723029103376,-1424.73,0.00035616,14]
[334399701,1723029103386,-10865.29,0.00035616,14]
[334399702,1723029103396,-2785.33,0.00035616,14]
[334399703,1723029103405,-500.0,0.00035616,14]
[334399704,1723029103415,-536.47,0.00035616,14]
[334399705,1723029103424,-973.08,0.00035616,14]
[334399706,1723029103434,-795.32,0.00035616,14]
[334399707,1723029103444,-6834.28,0.00035616,14]
[334399708,1723029103454,-500.0,0.00035616,14]
[334399709,1723029103464,-1637.95,0.00035616,14]
[334399710,1723029103475,-500.0,0.00035616,14]
[334399711,1723029103485,-500.0,0.00035616,14]
[334399712,1723029103494,-1190.28,0.00035616,14]
[334399713,1723029103504,-5590.89,0.00035616,14]
[334399714,1723029103514,-2520.26,0.00035616,14]
[334399715,1723029103524,-502.77,0.00035616,14]
[334399716,1723029103534,-1790.94,0.00035616,14]
[334399717,1723029103544,-500.0,0.00035616,14]
[334399718,1723029103553,-1565.92,0.00035616,14]
[334399719,1723029103563,-1612.65,0.00035616,14]
[334399720,1723029103574,-739.25,0.00035616,14]
[334399721,1723029103585,-500.0,0.00035616,14]
[334399722,1723029103595,-728.33,0.00035616,14]
[334399723,1723029103605,-709.69,0.00035616,14]
[334399724,1723029103618,-2157.08,0.00035616,14]
[334399725,1723029103628,-656.7,0.00035616,14]
[334399726,1723029103638,-500.0,0.00035616,14]
[334399727,1723029103648,-2547.19,0.00035616,14]
[334399728,1723029103659,-1757.34,0.00035616,14]
[334399729,1723029103670,-1214.45,0.00035616,14]
[334399730,1723029103681,-1138.49,0.00035616,14]
[334399731,1723029103694,-943.14,0.00035616,14]
[334399732,1723029103705,-814.59,0.00035616,14]
[334399733,1723029103714,-500.0,0.00035616,14]
[334399734,1723029103723,-1713.75,0.00035616,14]
[334399735,1723029103733,-318.9276554,0.00035616,7]
[334399736,1723029103742,-23155.4726233,0.00035616,2]
[334399737,1723029103754,-216.5,0.000357,12]
[334399738,1723029103764,-457.462,0.00035727,2]
[334399739,1723029103776,-200.0,0.00035761,2]
[334399740,1723029103788,-1000.0,0.000358,60]
[334399741,1723029103799,-166.79,0.000358,30]
[334399742,1723029103809,-1053.34,0.0003589,14]
[334399743,1723029103819,-1009.34,0.0003589,14]
[334399744,1723029103830,-2387.52,0.0003589,14]
[334399745,1723029103840,-500.0,0.0003589,14]
[334399746,1723029103849,-540.78,0.0003589,14]
[334399747,1723029103858,-558.5,0.0003589,14]
[334399748,1723029103870,-2183.56,0.0003589,14]
[334399749,1723029103879,-635.93,0.0003589,14]
[334399750,1723029103890,-614.31,0.0003589,14]
[334399751,1723029103899,-500.0,0.0003589,14]
[334399752,1723029103909,-1090.48,0.0003589,14]
[334399753,1723029103918,-500.0,0.0003589,14]
[334399754,1723029103928,-983.41,0.0003589,14]
[334399755,1723029103938,-1237.41,0.0003589,14]
[334399756,1723029103948,-316.43739022,0.0003589,14]
[334399757,1723029103957,-901.85,0.0003589,14]
[334399758,1723029103967,-500.0,0.0003589,14]
[334399759,1723029104086,-500.0,0.0003589,14]
[334399760,1723029104098,-705.74,0.0003589,14]
[334399761,1723029104108,-867.95,0.0003589,14]
[334399762,1723029104120,-890.32,0.0003589,14]
[334399763,1723029104130,-500.0,0.0003589,14]
[334399764,1723029104139,-641.8,0.0003589,14]
[334399765,1723029104148,-542.74887819,0.0003589,14]
[334399766,1723029104158,-663.8,0.0003589,14]
[334399767,1723029104167,-500.0,0.0003589,14]
[334399768,1723029104178,-500.0,0.0003589,14]
[334399769,1723029104189,-500.0,0.0003589,14]
[334399770,1723029104200,-500.0,0.0003589,14]
[334399771,1723029104211,-500.0,0.0003589,14]
[334399772,1723029104221,-610.03,0.0003589,14]
[334399773,1723029104233,-500.0,0.0003589,14]
[334399774,1723029104244,-500.0,0.0003589,14]
[334399775,1723029104255,-1049.44,0.0003589,14]
[334399776,1723029104267,-658.92,0.0003589,14]
[334399777,1723029104279,-634.91,0.0003589,14]
[334399778,1723029104289,-354.93002233,0.0003589,14]
[334399779,1723029104301,-618.32,0.0003589,14]
[334399780,1723029104311,-841.16,0.0003589,14]
[334399781,1723029104320,-500.0,0.0003589,14]
[334399782,1723029104329,-508.16,0.0003589,14]
[334399783,1723029104338,-543.25,0.0003589,14]
[334399784,1723029104349,-2103.08,0.0003589,14]
[334399785,1723029104359,-1135.85,0.0003589,14]
[334399786,1723029104371,-500.0,0.0003589,14]
[334399787,1723029104382,-726.44,0.0003589,14]
[334399788,1723029104394,-606.85,0.0003589,14]
[334399789,1723029104405,-665.91,0.0003589,14]
[334399790,1723029104416,-782.36,0.0003589,14]
[334399791,1723029104428,-500.0,0.0003589,14]
[334399792,1723029104441,-653.76,0.0003589,14]
[334399793,1723029104450,-500.0,0.0003589,14]
[334399794,1723029104462,-500.0,0.0003589,14]
[334399795,1723029104472,-572.65,0.0003589,14]
[334399796,1723029104481,-552.06,0.0003589,14]
[334399797,1723029104493,-723.92,0.0003589,14]
[334399798,1723029104504,-2180.22,0.0003589,14]
[334399799,1723029104515,-531.95,0.0003589,14]
[334399800,1723029104527,-500.0,0.0003589,14]
[334399801,1723029104537,-738.14,0.0003589,14]
[334399802,1723029104549,-500.0,0.0003589,14]
[334399803,1723029104561,-500.0,0.0003589,14]
[334399804,1723029104572,-500.0,0.0003589,14]
[334399805,1723029104583,-500.0,0.0003589,14]
[334399806,1723029104594,-500.0,0.0003589,14]
[334399807,1723029104603,-500.0,0.0003589,14]
[334399808,1723029104615,-561.59,0.0003589,14]
[334399809,1723029104626,-526.38,0.0003589,14]
[334399810,1723029104636,-655.78,0.0003589,14]
[334399811,1723029104648,-500.0,0.0003589,14]
[334399812,1723029104659,-997.18,0.0003589,14]
[334399813,1723029104670,-1854.37,0.0003589,14]
[334399814,1723029104682,-500.0,0.0003589,14]
[334399815,1723029104694,-200.0,0.0003589,7]
[334399816,1723029104704,-1754.86,0.0003589,14]
[334399817,1723029104714,-637.98,0.0003589,14]
[334399818,1723029104724,-2280.75,0.0003589,14]
[334399819,1723029104734,-524.01,0.0003589,14]
[334399820,1723029104744,-500.0,0.0003589,14]
[334399821,1723029104756,-500.0,0.0003589,14]
[334399822,1723029104766,-528.8,0.0003589,14]
[334399823,1723029104776,-1498.25,0.0003589,14]
[334399824,1723029104786,-500.0,0.0003589,14]
[334399825,1723029104797,-693.96,0.0003589,14]
[334399826,1723029104808,-500.0,0.0003589,14]
[334399827,1723029104818,-500.0,0.0003589,14]
[334399828,1723029104827,-627.54,0.0003589,14]
[334399829,1723029104839,-3342.3,0.0003589,14]
[334399830,1723029104849,-531.99,0.0003589,14]
[334399831,1723029104859,-500.0,0.0003589,14]
[334399832,1723029104871,-1236.8,0.0003589,14]
[334399833,1723029104881,-500.0,0.0003589,14]
[334399834,1723029104892,-728.37,0.0003589,14]
[334399835,1723029104904,-1161.27,0.0003589,14]
[334399836,1723029104914,-500.0,0.0003589,14]
[334399837,1723029104926,-938.86,0.0003589,14]
[334399838,1723029104937,-3031.19,0.0003589,14]
[334399839,1723029104947,-500.0,0.0003589,14]
[334399840,1723029104958,-1919.23,0.0003589,14]
[334399841,1723029104968,-884.22,0.0003589,14]
[334399842,1723029104978,-1075.22,0.0003589,14]
[334399843,1723029104988,-1225.39,0.0003589,14]
[334399844,1723029104999,-799.55,0.0003589,14]
[334399845,1723029105010,-665.15,0.0003589,14]
[334399846,1723029105035,-578.83,0.0003589,14]
[334399848,1723029105054,-500.0,0.0003589,14]
[334399849,1723029105076,-500.0,0.0003589,14]
[334399850,1723029105095,-500.0,0.0003589,14]
[334399851,1723029105117,-1407.14,0.0003589,14]
[334399852,1723029105137,-538.06,0.0003589,14]
[334399853,1723029105155,-500.0,0.0003589,14]
[334399854,1723029105172,-1237.71,0.0003589,14]
[334399855,1723029105190,-3398.02,0.0003589,14]
[334399856,1723029105210,-2584.23,0.0003589,14]
[334399857,1723029105225,-798.6,0.0003589,14]
[334399858,1723029105241,-604.27,0.0003589,14]
[334399859,1723029105258,-644.45058119,0.0003589,14]
[334399860,1723029105276,-500.0,0.0003589,14]
[334399861,1723029105291,-500.0,0.0003589,2]
[334399862,1723029105306,-500.0,0.0003589,14]
[334399863,1723029105321,-1456.08,0.0003589,14]
[334399864,1723029105337,-500.0,0.0003589,14]
[334399865,1723029105352,-968.66,0.0003589,14]
[334399866,1723029105369,-500.0,0.0003589,14]
[334399867,1723029105385,-1104.57,0.0003589,14]
[334399868,1723029105401,-785.13,0.0003589,14]
[334399869,1723029105416,-1000.35,0.0003589,14]
[334399870,1723029105433,-678.62,0.0003589,14]
[334399871,1723029105448,-2102.23,0.0003589,14]
[334399872,1723029105464,-1724.83,0.0003589,14]
[334399873,1723029105481,-786.56,0.0003589,14]
[334399874,1723029105497,-1026.47,0.0003589,14]
[334399875,1723029105514,-2410.79,0.0003589,14]
[334399876,1723029105530,-500.0,0.0003589,14]
[334399877,1723029105545,-1027.92,0.0003589,14]
[334399878,1723029105562,-572.28,0.0003589,14]
[334399879,1723029105579,-500.0,0.0003589,14]
[334399880,1723029105596,-827.4,0.0003589,14]
[334399881,1723029105614,-500.0,0.0003589,14]
[334399882,1723029105631,-1638.94,0.0003589,14]
[334399883,1723029105646,-2976.45,0.0003589,14]
[334399884,1723029105662,-728.06,0.0003589,14]
[334399885,1723029105679,-1275.04,0.0003589,14]
[334399886,1723029105697,-1187.93,0.0003589,14]
[334399887,1723029105713,-645.93,0.0003589,14]
[334399888,1723029105729,-1020.1,0.0003589,14]
[334399889,1723029105743,-500.0,0.0003589,14]
[334399890,1723029105758,-500.0,0.0003589,14]
[334399891,1723029105773,-500.0,0.0003589,14]
[334399892,1723029105788,-581.74,0.0003589,14]
[334399893,1723029105804,-720.42,0.0003589,14]
[334399894,1723029105820,-923.4,0.0003589,14]
[334399895,1723029105836,-500.0,0.0003589,14]
[334399896,1723029105851,-534.66,0.0003589,14]
[334399897,1723029105865,-671.94,0.0003589,14]
[334399898,1723029105880,-548.72,0.0003589,14]
[334399899,1723029105897,-2664.41,0.0003589,14]
[334399900,1723029105911,-1512.23,0.0003589,14]
[334399901,1723029105927,-1144.37,0.0003589,14]
[334399902,1723029105944,-518.05,0.0003589,14]
[334399903,1723029105958,-1021.34,0.0003589,14]
[334399904,1723029105974,-500.0,0.0003589,14]
[334399905,1723029105991,-2148.85,0.0003589,14]
[334399906,1723029106009,-500.0,0.0003589,14]
[334399907,1723029106027,-1093.31,0.0003589,14]
[334399908,1723029106043,-500.0,0.0003589,14]
[334399909,1723029106059,-2807.44,0.0003589,14]
[334399910,1723029106076,-647.5,0.0003589,14]
[334399911,1723029106095,-972.5,0.0003589,14]
[334399912,1723029106110,-2896.75,0.0003589,14]
[334399913,1723029106125,-836.81,0.0003589,14]
[334399914,1723029106140,-621.33,0.0003589,14]
[334399915,1723029106155,-877.3,0.0003589,14]
[334399916,1723029106171,-500.0,0.0003589,14]
[334399917,1723029106187,-646.55,0.0003589,14]
[334399918,1723029106202,-519.26,0.0003589,14]
[334399919,1723029106219,-811.6,0.0003589,14]
[334399920,1723029106233,-3787.31,0.0003589,14]
[334399921,1723029106249,-676.38,0.0003589,14]
[334399922,1723029106263,-500.0,0.0003589,14]
[334399923,1723029106279,-1713.3,0.0003589,14]
[334399924,1723029106296,-710.82,0.0003589,14]
[334399925,1723029106311,-3403.09,0.0003589,14]
[334399926,1723029106326,-500.0,0.0003589,14]
[334399927,1723029106341,-8008.66,0.0003589,14]
[334399928,1723029106360,-1695.73,0.0003589,14]
[334399929,1723029106377,-500.0,0.0003589,14]
[334399930,1723029106392,-2652.65,0.0003589,14]
[334399931,1723029106407,-500.0,0.0003589,14]
[334399932,1723029106421,-676.41,0.0003589,14]
[334399933,1723029106592,-4726.18,0.0003589,14]
[334399934,1723029106601,-631.77,0.0003589,14]
[334399935,1723029106610,-765.56,0.0003589,14]
[334399936,1723029106629,-524.76,0.0003589,14]
[334399937,1723029106639,-500.0,0.0003589,14]
[334399938,1723029106648,-596.92,0.0003589,14]
[334399939,1723029106657,-2772.04,0.0003589,14]
[334399940,1723029106667,-872.47,0.0003589,14]
[334399941,1723029106676,-500.0,0.0003589,14]
[334399942,1723029106686,-500.0,0.0003589,14]
[334399943,1723029106696,-2850.24,0.0003589,14]
[334399944,1723029106705,-2368.38,0.0003589,14]
[334399945,1723029106714,-918.69,0.0003589,14]
[334399946,1723029106724,-1182.98,0.0003589,14]
[334399947,1723029106733,-175.69545498,0.0003589,14]
[334399948,1723029106743,-787.24,0.0003589,14]
[334399949,1723029106752,-500.0,0.0003589,14]
[334399950,1723029106762,-500.0,0.0003589,14]
[334399951,1723029106771,-500.0,0.0003589,14]
[334399952,1723029106782,-748.79,0.0003589,14]
[334399953,1723029106791,-1732.44,0.0003589,14]
[334399954,1723029106802,-1373.61,0.0003589,14]
[334399955,1723029106811,-500.0,0.0003589,14]
[334399956,1723029106821,-705.51,0.0003589,14]
[334399957,1723029106831,-1008.03,0.0003589,14]
[334399958,1723029106843,-500.0,0.0003589,14]
[334399959,1723029106855,-5624.94,0.0003589,14]
[334399960,1723029106868,-4673.31,0.0003589,14]
[334399961,1723029106877,-2102.82,0.0003589,14]
[334399962,1723029106887,-683.38,0.0003589,14]
[334399963,1723029106898,-500.0,0.0003589,14]
[334399964,1723029106907,-500.0,0.0003589,14]
[334399965,1723029106916,-500.0,0.0003589,14]
[334399966,1723029106926,-1201.25,0.0003589,14]
[334399967,1723029106935,-5296.6,0.0003589,14]
[334399968,1723029106945,-500.0,0.0003589,14]
[334399969,1723029106955,-500.0,0.0003589,14]
[334399970,1723029106964,-754.45,0.0003589,14]
[334399971,1723029106974,-6120.77,0.0003589,14]
[334399972,1723029106983,-4115.44,0.0003589,14]
[334399973,1723029106993,-500.0,0.0003589,14]
[334399974,1723029107011,-2356.09,0.0003589,14]
[334399975,1723029107024,-1016.46,0.0003589,14]
[334399976,1723029107033,-1373.79,0.0003589,14]
[334399977,1723029107043,-27586.24,0.0003589,14]
[334399978,1723029107052,-641.2,0.0003589,14]
[334399979,1723029107062,-551.11,0.0003589,14]
[334399980,1723029107073,-2059.66,0.0003589,14]
[334399981,1723029107083,-884.77,0.0003589,14]
[334399982,1723029107093,-1858.24,0.0003589,14]
[334399983,1723029107103,-7553.97,0.0003589,14]
[334399984,1723029107114,-6001.15,0.0003589,14]
[334399985,1723029107124,-1904.11,0.0003589,14]
[334399986,1723029107133,-3288.86,0.0003589,14]
[334399987,1723029107143,-577.95,0.0003589,14]
[334399988,1723029107153,-1446.23,0.0003589,14]
[334399989,1723029107162,-509.19,0.0003589,14]
[334399990,1723029107172,-4804.12,0.0003589,14]
[334399991,1723029107181,-873.14,0.0003589,14]
[334399992,1723029107191,-3091.7,0.0003589,14]
[334399993,1723029107200,-743.63,0.0003589,14]
[334399994,1723029107209,-1370.13,0.0003589,14]
[334399995,1723029107219,-18095.21,0.0003589,14]
[334399996,1723029107228,-500.0,0.0003589,14]
[334399997,1723029107237,-1609.93,0.0003589,14]
[334399998,1723029107246,-2388.37,0.0003589,14]
[334399999,1723029107256,-803.5,0.0003589,14]
[334400000,1723029107266,-4013.41,0.0003589,14]
[334400001,1723029107276,-602.9,0.0003589,14]
[334400002,1723029107286,-2364.63,0.0003589,14]
[334400003,1723029107296,-629.6,0.0003589,14]
[334400004,1723029107306,-1184.06,0.0003589,14]
[334400005,1723029107315,-500.0,0.0003589,14]
[334400006,1723029107325,-1150.86,0.0003589,14]
[334400007,1723029107335,-602.76,0.0003589,14]
[334400008,1723029107344,-20279.89,0.0003589,14]
[334400009,1723029107354,-1372.29,0.0003589,14]
[334400010,1723029107364,-500.0,0.0003589,14]
[334400011,1723029107373,-11638.4,0.0003589,14]
[334400012,1723029107383,-500.0,0.0003589,14]
[334400013,1723029107393,-605.73679188,0.0003589,14]
[334400014,1723029107402,-1433.62,0.0003589,14]
[334400015,1723029107412,-500.0,0.0003589,14]
[334400016,1723029107421,-761.0,0.0003589,14]
[334400017,1723029107431,-1750.38,0.0003589,14]
[334400018,1723029107440,-512.68,0.0003589,14]
[334400019,1723029107450,-746.77,0.0003589,14]
[334400020,1723029107459,-11428.84,0.0003589,14]
[334400021,1723029107469,-1433.26,0.0003589,14]
[334400022,1723029107478,-2496.12,0.0003589,14]
[334400023,1723029107487,-2356.96,0.0003589,14]
[334400024,1723029107496,-2975.06,0.0003589,14]
[334400025,1723029107506,-3825.94,0.0003589,14]
[334400026,1723029107515,-1460.03,0.0003589,14]
[334400027,1723029107526,-1424.73,0.0003589,14]
[334400028,1723029107536,-10865.29,0.0003589,14]
[334400029,1723029107546,-2785.33,0.0003589,14]
[334400030,1723029107555,-500.0,0.0003589,14]
[334400031,1723029107564,-536.47,0.0003589,14]
[334400032,1723029107574,-973.08,0.0003589,14]
[334400033,1723029107586,-795.32,0.0003589,14]
[334400034,1723029107595,-6834.28,0.0003589,14]
[334400035,1723029107605,-500.0,0.0003589,14]
[334400036,1723029107614,-1637.95,0.0003589,14]
[334400037,1723029107624,-500.0,0.0003589,14]
[334400038,1723029107633,-203.73411757,0.0003589,14]
[334400039,1723029107642,-1190.28,0.0003589,14]
[334400040,1723029107652,-5590.89,0.0003589,14]
[334400041,1723029107663,-2520.26,0.0003589,14]
[334400042,1723029107674,-502.77,0.0003589,14]
[334400043,1723029107684,-1790.94,0.0003589,14]
[334400044,1723029107695,-500.0,0.0003589,14]
[334400045,1723029107705,-1565.92,0.0003589,14]
[334400046,1723029107716,-1612.65,0.0003589,14]
[334400047,1723029107727,-739.25,0.0003589,14]
[334400048,1723029107737,-366.49,0.0003589,14]
[334400049,1723029107748,-728.33,0.0003589,14]
[334400050,1723029107757,-709.69,0.0003589,14]
[334400051,1723029107768,-2157.08,0.0003589,14]
[334400052,1723029107779,-656.7,0.0003589,14]
[334400053,1723029107792,-500.0,0.0003589,14]
[334400054,1723029107804,-2547.19,0.0003589,14]
[334400055,1723029107819,-1757.34,0.0003589,14]
[334400056,1723029107830,-1214.45,0.0003589,14]
[334400057,1723029107841,-1138.49,0.0003589,14]
[334400058,1723029107851,-943.14,0.0003589,14]
[334400059,1723029107861,-814.59,0.0003589,14]
[334400060,1723029107874,-500.0,0.0003589,14]
[334400061,1723029107884,-1713.75,0.0003589,14]
[334400062,1723029107896,-153.0,0.00035945,2]
[334400063,1723029107906,-153.0,0.00035945,2]
[334400064,1723029107915,-153.0,0.00035945,2]
[334400065,1723029107925,-153.0,0.00035945,2]
[334400066,1723029107935,-153.0,0.00035945,2]
[334400067,1723029107945,-306.9674035,0.00035945,2]
[334400068,1723029107955,-5000.0,0.00036,36]
[334400069,1723029107964,-2220.0,0.00036,120]
[334400070,1723029107974,-237.0,0.00036,2]
[334400071,1723029107984,-237.0,0.00036,2]
[334400072,1723029107995,-1053.34,0.00036164,14]
[334400073,1723029108007,-1009.34,0.00036164,14]
[334400074,1723029108022,-2387.52,0.00036164,14]
[334400075,1723029108032,-500.0,0.00036164,14]
[334400076,1723029108042,-540.78,0.00036164,14]
[334400077,1723029108051,-558.5,0.00036164,14]
[334400078,1723029108064,-2183.56,0.00036164,14]
[334400079,1723029108074,-635.93,0.00036164,14]
[334400080,1723029108084,-614.31,0.00036164,14]
[334400081,1723029108097,-500.0,0.00036164,14]
[334400082,1723029108106,-1090.48,0.00036164,14]
[334400083,1723029108116,-500.0,0.00036164,14]